Department Family,Entity,Date,Expenses Type,Expense Area,Supplier,Transaction Number,  Total  
Department of Health,The Christie NHS Foundation Trust,27/01/2022,Drugs,Drugs,ALCURA UK LIMITED,0000686243," 71,022.40 "
Department of Health,The Christie NHS Foundation Trust,20/01/2022,PET Scans- July 21,Manchester Cancer,ALLIANCE MEDICAL LTD,0000674199," 22,750.00 "
Department of Health,The Christie NHS Foundation Trust,27/01/2022,PET Scans Oct 21,Christie Medical Physics,ALLIANCE MEDICAL LTD,0000680133," 207,100.00 "
Department of Health,The Christie NHS Foundation Trust,27/01/2022,PET Scans Nov 21,Christie Medical Physics,ALLIANCE MEDICAL LTD,0000683980," 75,060.00 "
Department of Health,The Christie NHS Foundation Trust,20/01/2022,PET Scans Nov 21,Manchester Cancer,ALLIANCE MEDICAL LTD,0000684435," 43,550.00 "
Department of Health,The Christie NHS Foundation Trust,06/01/2022,Drugs,Drugs,BAXTER HEALTHCARE LTD,0000683034," 83,689.69 "
Department of Health,The Christie NHS Foundation Trust,06/01/2022,Drugs,Drugs,BAXTER HEALTHCARE LTD,0000683035," 209,986.37 "
Department of Health,The Christie NHS Foundation Trust,06/01/2022,Drugs,Drugs,BAXTER HEALTHCARE LTD,0000683208," 95,582.53 "
Department of Health,The Christie NHS Foundation Trust,20/01/2022,Drugs,Drugs,BAXTER HEALTHCARE LTD,0000683588," 125,100.98 "
Department of Health,The Christie NHS Foundation Trust,20/01/2022,Drugs,Drugs,BAXTER HEALTHCARE LTD,0000683594," 71,428.73 "
Department of Health,The Christie NHS Foundation Trust,20/01/2022,Drugs,Drugs,BAXTER HEALTHCARE LTD,0000683599," 65,180.65 "
Department of Health,The Christie NHS Foundation Trust,20/01/2022,Drugs,Drugs,BAXTER HEALTHCARE LTD,0000683621," 125,795.23 "
Department of Health,The Christie NHS Foundation Trust,27/01/2022,Drugs,Drugs,BAXTER HEALTHCARE LTD,0000683801," 79,198.03 "
Department of Health,The Christie NHS Foundation Trust,27/01/2022,Drugs,Drugs,BAXTER HEALTHCARE LTD,0000684138," 80,289.48 "
Department of Health,The Christie NHS Foundation Trust,27/01/2022,Drugs,Drugs,BAXTER HEALTHCARE LTD,0000684143," 87,241.13 "
Department of Health,The Christie NHS Foundation Trust,27/01/2022,Drugs,Drugs,BAXTER HEALTHCARE LTD,0000684145," 326,769.34 "
Department of Health,The Christie NHS Foundation Trust,27/01/2022,Drugs,Drugs,BAXTER HEALTHCARE LTD,0000684146," 322,187.35 "
Department of Health,The Christie NHS Foundation Trust,27/01/2022,Drugs,Drugs,BAXTER HEALTHCARE LTD,0000684147," 224,930.60 "
Department of Health,The Christie NHS Foundation Trust,27/01/2022,Drugs,Drugs,BAXTER HEALTHCARE LTD,0000684148," 103,508.74 "
Department of Health,The Christie NHS Foundation Trust,27/01/2022,Drugs,Drugs,BAXTER HEALTHCARE LTD,0000684835," 95,397.74 "
Department of Health,The Christie NHS Foundation Trust,27/01/2022,Drugs,Drugs,BAXTER HEALTHCARE LTD,0000684836," 148,497.52 "
Department of Health,The Christie NHS Foundation Trust,27/01/2022,Drugs,Drugs,BAXTER HEALTHCARE LTD,0000684837," 358,148.40 "
Department of Health,The Christie NHS Foundation Trust,27/01/2022,Drugs,Drugs,BAXTER HEALTHCARE LTD,0000684839," 88,195.92 "
Department of Health,The Christie NHS Foundation Trust,06/01/2022,Fire Safety Service,Estates & Facilities,CHUBB FIRE AND SECURITY LIMITED,0000683209," 39,160.00 "
Department of Health,The Christie NHS Foundation Trust,17/01/2022,"CNST, LTPS & PES - January 2022", Quality & Standards,DD  NHS RESOLUTION,0000685235," 177,439.90 "
Department of Health,The Christie NHS Foundation Trust,07/01/2022,Rates,Estates & Facilities,DD M/CR CITY COUNCIL (RATES),0000684643," 75,629.00 "
Department of Health,The Christie NHS Foundation Trust,13/01/2022,Blood Products,Network Services,DD NHS BLOOD AND TRANSPLANT,0000683369," 160,265.00 "
Department of Health,The Christie NHS Foundation Trust,13/01/2022,Electricity Invoice - October 2021,Network Services,EDF ENERGY,0000684622," 85,268.88 "
Department of Health,The Christie NHS Foundation Trust,06/01/2022,Technology Equipment,Capital,GE MEDICAL SYSTEMS LIMITED,0000683677," 159,713.32 "
Department of Health,The Christie NHS Foundation Trust,27/01/2022,Medical Equipment,Network Services,GILEAD SCIENCES LTD,0000684131," 224,360.80 "
Department of Health,The Christie NHS Foundation Trust,27/01/2022,Furniture,Capital,H JENKINSON&CO LTD,0000684431," 104,564.46 "
Department of Health,The Christie NHS Foundation Trust,06/01/2022,Drugs,Drugs,HEALTHCARE AT HOME LTD,0000684139," 31,858.00 "
Department of Health,The Christie NHS Foundation Trust,13/01/2022,Drugs,Drugs,HEALTHCARE AT HOME LTD,0000684141," 54,109.00 "
Department of Health,The Christie NHS Foundation Trust,20/01/2022,Drugs,Drugs,HEALTHCARE AT HOME LTD,0000685512," 42,901.00 "
Department of Health,The Christie NHS Foundation Trust,20/01/2022,Drugs,Drugs,HEALTHCARE AT HOME LTD,0000685687," 44,538.00 "
Department of Health,The Christie NHS Foundation Trust,13/01/2022,Software and IT Consultancy,Digital Services,IDEAL HEALTH CONSULTANTS LIMITED,0000684425," 25,000.00 "
Department of Health,The Christie NHS Foundation Trust,27/01/2022,Computer Equipment,Capital,INSIGHT DIRECT (UK) LTD,0000681652," 38,700.30 "
Department of Health,The Christie NHS Foundation Trust,20/01/2022,Computer Equipment,Capital,INSIGHT DIRECT (UK) LTD,0000684329," 26,796.00 "
Department of Health,The Christie NHS Foundation Trust,20/01/2022,Computer Equipment,Capital,INSIGHT DIRECT (UK) LTD,0000684330," 122,450.78 "
Department of Health,The Christie NHS Foundation Trust,27/01/2022,IT Consultancy,Capital,INTEROPERABILITY HEALTH UK LIMITED,0000685082," 52,500.00 "
Department of Health,The Christie NHS Foundation Trust,27/01/2022,Prescribing Software : January 2022 - March 2022,Digital Services,IQ HEALTH TECH LTD,0000684326," 39,000.00 "
Department of Health,The Christie NHS Foundation Trust,13/01/2022,Drugs,Drugs,LLOYDSPHARMACY CLINICAL HOMECARE,0000685048," 31,744.65 "
Department of Health,The Christie NHS Foundation Trust,06/01/2022,Q2 Paediatric Anaesthetic Service,Network Services,MANCHESTER UNIVERSITY NHS FT,0000679580," 82,464.00 "
Department of Health,The Christie NHS Foundation Trust,06/01/2022,Blood Products,Network Services,NHS BLOOD AND TRANSPLANT,0000682760," 52,851.02 "
Department of Health,The Christie NHS Foundation Trust,06/01/2022,Blood Products,Network Services,NHS BLOOD AND TRANSPLANT,0000683371," 28,346.66 "
Department of Health,The Christie NHS Foundation Trust,20/01/2022,All Wards & Departments ,The Christie NHS FT Balance,NHS SUPPLY CHAIN,0000684669," 69,341.84 "
Department of Health,The Christie NHS Foundation Trust,20/01/2022,All Wards & Departments ,The Christie NHS FT Balance,NHS SUPPLY CHAIN,0000684670," 94,660.38 "
Department of Health,The Christie NHS Foundation Trust,20/01/2022,All Wards & Departments ,The Christie NHS FT Balance,NHS SUPPLY CHAIN,0000684671," 86,136.25 "
Department of Health,The Christie NHS Foundation Trust,27/01/2022,All Wards & Departments ,The Christie NHS FT Balance,NHS SUPPLY CHAIN,0000684672," 192,714.25 "
Department of Health,The Christie NHS Foundation Trust,20/01/2022,Salford Fixed SLA - Rental of Building - January 2022,Estates & Facilities,NORTHERN CARE ALLIANCE NHS FT,0000685228," 25,974.41 "
Department of Health,The Christie NHS Foundation Trust,27/01/2022,Drugs,Drugs,NOVARTIS PHARMACEUTICALS UK LTD,0000683769," 257,184.00 "
Department of Health,The Christie NHS Foundation Trust,13/01/2022,Medical Equipment,Clinical Support & Specialist Surgery,PARITY COMPUTERS LTD,0000683878," 27,654.62 "
Department of Health,The Christie NHS Foundation Trust,27/01/2022,Medical Equipment,Network Services,PHILIPS HEALTHCARE,0000684323," 170,000.00 "
Department of Health,The Christie NHS Foundation Trust,19/01/2022,Medical Equipment,Capital,RAYSEARCH UK LTD,0000684337," 114,161.00 "
Department of Health,The Christie NHS Foundation Trust,13/01/2022,Service Agreement 2021-2022,Clinical Support & Specialist Surgery,SIEMENS HEALTHCARE LIMITED,0000683813," 48,379.88 "
Department of Health,The Christie NHS Foundation Trust,06/01/2022,Patients Accomodation,Network Services,STAYCITY MANCHESTER LTD,0000681218," 103,360.71 "
Department of Health,The Christie NHS Foundation Trust,06/01/2022,Month 9 Chemotherapy SLA Invoice,Network Services,STOCKPORT NHS FOUNDATION TRUST,0000683366," 31,786.00 "
Department of Health,The Christie NHS Foundation Trust,20/01/2022,Medical Equipment,Capital,STRYKER UK LTD,0000685618," 41,712.00 "
Department of Health,The Christie NHS Foundation Trust,13/01/2022,Pathology Testing Services - November 2021,Christie Pathology Partner,THE CHRISTIE PATHOLOGY PARTNERSHIP LLP,0000684096,"-379,726.40 "
Department of Health,The Christie NHS Foundation Trust,13/01/2022,Pathology Testing Services - November 2021,Christie Pathology Partner,THE CHRISTIE PATHOLOGY PARTNERSHIP LLP,0000684097," 527,458.67 "
Department of Health,The Christie NHS Foundation Trust,13/01/2022,Pathology Testing Services - November 2021,Christie Pathology Partner,THE CHRISTIE PATHOLOGY PARTNERSHIP LLP,0000684099," 250,667.69 "
Department of Health,The Christie NHS Foundation Trust,13/01/2022,Pathology Testing Services - 2019,Christie Pathology Partner,THE CHRISTIE PATHOLOGY PARTNERSHIP LLP,0000684100,"-180,459.89 "
Department of Health,The Christie NHS Foundation Trust,20/01/2022,Research Services,Research & Innovation,UNIVERSITY OF MANCHESTER,0000683784," 169,779.97 "
Department of Health,The Christie NHS Foundation Trust,27/01/2022,Research Services,Research & Innovation,UNIVERSITY OF MANCHESTER,0000684601," 84,825.77 "
Department of Health,The Christie NHS Foundation Trust,27/01/2022,Research Services,Research & Innovation,UNIVERSITY OF MANCHESTER,0000684602," 45,569.97 "
Department of Health,The Christie NHS Foundation Trust,06/01/2022,Car Park Construction Works,Capital,VINCI CONSTRUCTION UK LIMITED,0000683913," 787,331.36 "
Department of Health,The Christie NHS Foundation Trust,13/01/2022,Macclesfield Christie Construction Works,Capital,VINCI CONSTRUCTION UK LIMITED,0000684339," 79,135.20 "
Department of Health,The Christie NHS Foundation Trust,20/01/2022,Medical Equipment,Capital,VISION RT LTD,0000681714," 75,070.80 "
Department of Health,The Christie NHS Foundation Trust,06/01/2022,Christie CEF Construction Works,Capital,VITAL ENERGI SOLUTIONS LTD,0000683811," 296,264.88 "
Department of Health,The Christie NHS Foundation Trust,27/01/2022,The Christie Hospital PSDS Construction Works,Capital,VITAL ENERGI SOLUTIONS LTD,0000683931," 1,104,081.10 "
Department of Health,The Christie NHS Foundation Trust,06/01/2022,Computer Equipment,Digital Services,XMA LTD,0000682794," 43,500.00 "
